[Event "Bijnor Open 2024"]
[Site "Bijnor"]
[Date "2024.03.19"]
[Round "5.8"]
[White "Shreyash Singh"]
[Black "Pranay Chordia"]
[Result "1-0"]
[ECO "A85"]
[WhiteElo "1807"]
[BlackElo "1796"]
[Annotator "NA RC"]
[PlyCount "47"]
[EventDate "2024.03.17"]
[EventCountry "IND"]
[SourceTitle "playchess.com"]
[Source "ChessBase"]
[SourceQuality "1"]
[TimeControl "5400+30"]

1. d4 {[%emt 0:00:04]} e6 {[%emt 0:00:15]} 2. c4 {[%emt 0:00:21]} f5 {[%emt 0:00:04]} 3. a3 {[%emt 0:00:03]} Nf6 {[%emt 0:00:13]} 4. Nc3 {[%emt 0:00:06]} d6 {[%emt 0:00:46]} 5. Nf3 {[%emt 0:00:09]} Be7 {[%emt 0:00:50]} 6. Qc2 {[%emt 0:00:08] A85: Holländische Verteidigung.} O-O {[%emt 0:06:38]} 7. e4 {[%emt 0:00:14]} fxe4 {[%emt 0:16:55]} 8. Nxe4 {[%emt 0:00:37]} Nxe4 {[%emt 0:00:02]} 9. Qxe4 {[%emt 0:00:13]} d5 {[%emt 0:00:04]} 10. Qc2 {[%emt 0:02:20]} Nc6 {[%emt 0:05:59]} 11. Be3 {[%emt 0:02:22]} Bf6 {[%emt 0:03:47]} 12. Bd3 {[%emt 0:05:01]} h6 {[%emt 0:00:09]} 13. O-O-O {[%emt 0:03:49]} Bd7 {[%emt 0:09:57]} 14. Rhg1 {[%emt 0:04:59]} dxc4 {[%emt 0:12:49]} 15. Bxc4 {[%emt 0:01:27]} b5 {[%emt 0:00:05]} 16. d5 {[%emt 0:05:29]} Na5 {[%emt 0:06:01]} 17. Ba2 {[%emt 0:00:26]} Qc8 {[%emt 0:07:03]} 18. Bb1 {[%emt 0:05:13]} Nc4 {[%emt 0:07:06]} 19. Qh7+ {[%emt 0:02:24]} Kf7 {[%emt 0:00:01]} 20. dxe6+ {[%emt 0:01:00]} Bxe6 {[%emt 0:00:23]} 21. Bd4 {[%emt 0:00:30]} c5 {[%emt 0:09:27]} 22. Bxf6 {[%emt 0:00:27]} Kxf6 {[%emt 0:00:02]} 23. Qg6+ {[%emt 0:00:15]} Ke7 {[%emt 0:00:00]} 24. Rge1 $18 {[%emt 0:00:24]} 1-0

[Event "Bijnor Open 2024"]
[Site "Bijnor"]
[Date "2024.03.19"]
[Round "5.9"]
[White "Vrashank Chouhan"]
[Black "Chaudhary Sanjeev"]
[Result "1-0"]
[ECO "D07"]
[WhiteElo "2330"]
[BlackElo "1652"]
[Annotator "TA"]
[PlyCount "49"]
[EventDate "2024.03.17"]
[EventCountry "IND"]
[SourceTitle "playchess.com"]
[Source "ChessBase"]
[SourceQuality "1"]
[TimeControl "5400+30"]

{[%evp 9,49,30,36,38,35,28,47,45,41,57,70,58,82,72,81,81,117,109,118,106,114,113,108,108,197,183,191,110,167,132,316,304,278,279,271,257,914,531,2054,592,29998,29999]} 1. d4 {[%emt 0:00:02]} d5 {[%emt 0:00:30]} 2. Nf3 {[%emt 0:00:54]} Nc6 {[%emt 0:00:43]} 3. c4 {[%emt 0:02:20]} e6 {[%emt 0:02:37]} 4. Nc3 {[%emt 1:29:14]} Nf6 {[%emt 0:02:27]} 5. e3 {[%emt 0:00:00]} Be7 {[%emt 0:02:15]} 6. Be2 {[%emt 0:00:00]} O-O {[%emt 0:01:03]} 7. O-O {[%emt 0:00:00]} Re8 {[%emt 0:01:04]} 8. b3 {[%emt 0:00:00] Weiß steht etwas besser.} a6 {[%emt 0:04:22]} 9. Bb2 {[%emt 0:00:00]} Bd6 {[%emt 0:03:32]} 10. Rc1 {[%emt 0:00:00]} Ne4 {[%emt 0:01:46]} 11. Nxe4 {[%emt 0:00:00]} (11. cxd5 $6 Nxc3 12. Bxc3 exd5 $11) 11... dxe4 {[%emt 0:02:14]} 12. Ne5 {[%emt 0:00:00]} Bd7 {[%emt 0:04:30]} 13. Nxd7 {[%emt 0:00:00]} Qxd7 {[%emt 0:02:08]} 14. Qc2 {[%emt 0:00:00]} f5 {[%emt 0:01:28]} 15. f3 {[%emt 0:00:00]} exf3 {[%emt 0:02:29]} 16. Bxf3 {[%emt 0:00:00]} Nd8 {[%emt 0:05:57]} (16... Nb4 $16 17. Qb1 c5) 17. e4 {[%emt 0:00:00]} c6 {[%emt 0:04:51]} 18. d5 {[%emt 0:00:00]} (18. exf5 $18 {Schwarz muss nun Bh5 beachten.} exf5 19. c5) 18... Qc7 {[%emt 0:03:20]} (18... exd5 $16 {ist wohl besser.} 19. cxd5 Qc7) 19. g3 {[%emt 0:00:00] [#] Und c5 würde nun gewinnen.} c5 $2 {[%emt 0:04:53] Danach kann Schwarz die Partie nicht mehr halten.} (19... Be5 $16) 20. exf5 {[%emt 0:00:00]} exf5 {[%emt 0:00:45]} 21. Qxf5 {[%emt 0:00:00]} Nf7 {[%emt 0:02:32] Schwarz ist schwach auf den weissen Feldern} 22. Bh5 $40 {[%emt 0:00:00][%mdl 128] Weiss greift entschieden an. Das Läuferpaar ist gut.} Rf8 {[%emt 0:02:42] [#]} (22... Nh6 23. Qh3 Re3) 23. Qe6 {[%emt 0:00:00]} Bxg3 {[%emt 0:08:45]} 24. Bxf7+ {[%emt 0:00:00]} (24. Rc2 $142 {[%cal Oc2g2] Droht Matt per Rg2!} Qd6 25. Rxf7 (25. Bxf7+ Kh8 $18) 25... Kh8 26. Rxg7 (26. hxg3 Qxe6 27. dxe6 h6 28. Rxf8+ Rxf8 29. e7 Rg8 30. Rf2 Rb8 31. Rf8+ Kh7 32. Rxb8 b5 33. e8=Q bxc4 34. Qh8#) (26. Bxg7+ Kg8 27. Bxf8 Qxe6 28. dxe6 Rxf8 29. hxg3 Rxf7 30. exf7+ Kf8) 26... Qxe6 27. dxe6 Rf4 28. Rxg3+ Rd4 29. e7 (29. Bxd4+ cxd4 30. e7 h6 31. Rf2 Kh7 32. Rf8 Rxf8 33. exf8=Q b6 34. Qg8#)) 24... Kh8 {[%emt 0:01:12]} 25. Bxg7+ {[%emt 0:00:00] Gewichteter Fehlerwert: Weiß=0.67/Schwarz=0.69.  Verlustzug:     	---       	Schwarz=1     Fehler:       	Weiß=1     	Schwarz=3     Ungenau:       	Weiß=1     	Schwarz=3     OK:         	Weiß=7     	Schwarz=2     Bester:       	---       	Schwarz=1} 1-0

[Event "Bijnor Open 2024"]
[Site "Bijnor"]
[Date "2024.03.19"]
[Round "5.10"]
[White "Vignesh B"]
[Black "Ravish Chaudhary"]
[Result "1-0"]
[ECO "B50"]
[WhiteElo "2209"]
[BlackElo "1633"]
[Annotator "RC"]
[PlyCount "57"]
[EventDate "2024.03.17"]
[EventCountry "IND"]
[SourceTitle "playchess.com"]
[Source "ChessBase"]
[SourceQuality "1"]
[TimeControl "5400+30"]

1. e4 {[%emt 0:00:05]} c5 {[%emt 0:03:48]} 2. Nf3 {[%emt 0:00:10]} d6 {[%emt 0:00:06]} 3. c3 {[%emt 0:00:05]} Nf6 {[%emt 0:00:11]} 4. Be2 {[%emt 0:00:05]} e5 {[%emt 0:02:49]} 5. O-O {[%emt 0:00:12]} Be7 {[%emt 0:00:28]} 6. Re1 {[%emt 0:01:53]} O-O {[%emt 0:00:08]} 7. Bf1 {[%emt 0:00:04]} Nc6 {[%emt 0:01:21]} 8. h3 {[%emt 0:00:19]} Qc7 {[%emt 0:05:41]} 9. d4 {[%emt 0:00:13]} cxd4 {[%emt 0:00:40]} 10. cxd4 {[%emt 0:00:05]} exd4 {[%emt 0:05:29]} 11. Nxd4 {[%emt 0:00:23]} Nxd4 {[%emt 0:15:23]} 12. Qxd4 {[%emt 0:00:08]} Bd7 {[%emt 0:03:04]} 13. Nc3 {[%emt 0:00:18]} Bc6 {[%emt 0:05:54]} 14. Bf4 {[%emt 0:01:10]} Nd7 {[%emt 0:11:03]} 15. Rac1 {[%emt 0:00:30]} Qb6 {[%emt 0:01:05]} 16. Qd2 {[%emt 0:00:44]} Rfd8 {[%emt 0:07:08]} 17. Be3 {[%emt 0:04:06]} Qb4 {[%emt 0:11:42]} 18. Nd5 {[%emt 0:03:23]} Qxd2 {[%emt 0:00:08]} 19. Nxe7+ {[%emt 0:00:06]} Kf8 {[%emt 0:00:06]} 20. Bxd2 {[%emt 0:00:03]} Kxe7 {[%emt 0:00:05]} 21. Bb4 {[%emt 0:00:12]} Nc5 {[%emt 0:11:48]} 22. e5 {[%emt 0:03:40]} b6 {[%emt 0:00:16]} 23. exd6+ {[%emt 0:09:17]} Kxd6 {[%emt 0:00:04]} 24. Bc4 {[%emt 0:00:28]} Bd5 {[%emt 0:02:22]} 25. Bxd5 {[%emt 0:01:42]} Kxd5 {[%emt 0:00:06]} 26. Bxc5 {[%emt 0:00:07]} bxc5 {[%emt 0:00:18]} 27. Re7 {[%emt 0:00:05]} Rf8 {[%emt 0:07:04]} 28. Rc7 {[%emt 0:00:50]} Rac8 {[%emt 0:03:23]} 29. R1xc5+ {[%emt 0:00:03]} 1-0

[Event "Bijnor Open 2024"]
[Site "Bijnor"]
[Date "2024.03.19"]
[Round "6.1"]
[White "Srihari L R"]
[Black "Neelash Saha"]
[Result "1/2-1/2"]
[ECO "E05"]
[WhiteElo "2490"]
[BlackElo "2463"]
[Annotator "TA"]
[PlyCount "49"]
[EventDate "2024.03.17"]
[EventCountry "IND"]
[SourceTitle "playchess.com"]
[Source "ChessBase"]
[SourceQuality "1"]
[TimeControl "5400+30"]

{[%evp 13,49,7,3,6,7,17,10,11,17,18,18,17,10,17,19,13,8,0,0,6,1,0,41,38,28,22,40,35,106,0,0,0,-7,0,0,-10,0,-16]} 1. d4 {[%emt 0:04:39]} Nf6 {[%emt 0:00:26]} 2. c4 {[%emt 0:00:08]} e6 {[%emt 0:00:05]} 3. g3 {[%emt 0:00:04]} d5 {[%emt 0:00:34]} 4. Bg2 {[%emt 0:00:06]} Be7 {[%emt 0:00:07]} 5. Nf3 {[%emt 0:00:05]} O-O {[%emt 0:00:06]} 6. O-O {[%emt 0:00:05]} dxc4 {[%emt 0:00:59]} 7. Qc2 {[%emt 0:00:06]} b5 {[%emt 0:00:48]} 8. a4 {[%emt 0:00:07]} b4 {[%emt 0:00:05]} 9. Nfd2 {[%emt 0:00:05][%cal Bf3d2,Bd2c4,Bc4e3,Be3g4][%mdl 32]} (9. Qxc4 Ba6 10. Qc2 Nbd7) 9... c6 {[%emt 0:00:05]} 10. Nxc4 {[%emt 0:00:05]} (10. Qxc4 Ba6 11. Qc2 Qxd4 $15) 10... Qxd4 {[%emt 0:00:03]} 11. Rd1 {[%emt 0:00:07]} Qc5 {[%emt 0:00:05]} 12. Be3 {[%emt 0:00:04]} Qh5 {[%emt 0:00:05]} 13. Nbd2 {[%emt 0:00:05][%cal Bb1d2,Bd2f3,Bf3d4][%mdl 32]} Ng4 {[%emt 0:00:55]} 14. Nf3 {[%emt 0:00:07]} Nxe3 {[%emt 0:01:29]} 15. Nxe3 {[%emt 0:00:19]} a5 {[%emt 0:00:05]} 16. Nd4 {[%emt 0:00:31]} Ba6 {[%emt 0:02:31]} 17. Rac1 {[%emt 0:00:12][%cal Og2f3]} Ra7 {[%emt 0:03:20]} 18. Bf3 {[%emt 0:05:20]} (18. Bxc6 Rc7 19. Qd2 Nxc6 20. Rxc6 Rxc6 21. Nxc6 Bf6 $17) 18... Qe5 {[%emt 0:00:49]} 19. Ng4 {[%emt 0:15:39]} ({Doch nicht} 19. Bxc6 Rc7 20. Qe4 Bd6 $11) 19... Qc7 {[%emt 0:03:07]} 20. Bxc6 {[%emt 0:18:44]} Rc8 {[%emt 0:03:43]} (20... h5 $14 21. Ne3 g6) 21. Qd2 {[%emt 0:02:24] Weiß steht aktiver.} ({Der einzige Zug:} 21. Qe4 $16 {[%cal Od4e6] Nxe6! wäre nun fies.} Bf8 22. Nb5 Bxb5 23. axb5 (23. Bxb5 Qxc1 24. Rxc1 Rxc1+ 25. Kg2 Rc8 $17) 23... Nxc6 24. Rxc6 (24. bxc6 a4 $11)) 21... Qb6 $11 {[%emt 0:01:27] Die Stellung ist ausgeglichen.} 22. Bb5 {[%emt 0:02:49]} Rac7 {[%emt 0:02:28]} 23. Rxc7 {[%emt 0:02:14]} Qxc7 {[%emt 0:00:05]} 24. Bxa6 {[%emt 0:05:36]} Nxa6 {[%emt 0:00:06]} 25. Nb5 {[%emt 0:06:18] Gewichteter Fehlerwert: Weiß=0.10 (sehr präzise) /Schwarz=0.07 (makellos) .  Fehler:       	Weiß=1     	Schwarz=1     Ungenau:       	---       	Schwarz=1     OK:         	Weiß=11    	Schwarz=11    Bester:       	---       	Schwarz=1} 1/2-1/2

[Event "Bijnor Open 2024"]
[Site "Bijnor"]
[Date "2024.03.19"]
[Round "6.2"]
[White "Sai Agni Jeevitesh, J."]
[Black "Singh, Arvinder Preet"]
[Result "0-1"]
[ECO "A83"]
[WhiteElo "2285"]
[BlackElo "2030"]
[Annotator "TA"]
[PlyCount "110"]
[EventDate "2024.03.17"]
[EventCountry "IND"]
[SourceTitle "playchess.com"]
[Source "ChessBase"]
[SourceQuality "1"]
[TimeControl "5400+30"]

{[%evp 13,110,41,61,57,70,48,76,75,76,70,64,74,106,81,86,75,79,53,62,56,57,0,0,0,0,0,0,-2,-2,-14,-12,-13,0,-29,-31,-31,-21,-24,-15,-14,-5,-9,0,-7,0,-12,-7,-17,-10,-47,-24,-45,-16,-22,-55,-296,-289,-373,-361,-400,-370,-408,-390,-906,-537,-474,-538,-545,-553,-654,-636,-711,-703,-632,-585,-667,-681,-679,-678,-693,-602,-704,-677,-702,-838,-1122,-1026,-905,-781,-2190,-1851,-3160,-2162,-29955,-29959,-29972,-29976,-29963,-12164]} 1. d4 {[%emt 0:02:56]} f5 {[%emt 0:00:05]} 2. Nc3 {[%emt 0:00:51]} Nf6 {[%emt 0:00:09]} 3. Bg5 {[%emt 0:00:06]} e6 {[%emt 0:00:17]} 4. e4 {[%emt 0:00:33]} fxe4 {[%emt 0:00:13]} 5. Nxe4 {[%emt 0:00:06]} Be7 {[%emt 0:00:05]} 6. Bxf6 {[%emt 0:00:29]} Bxf6 {[%emt 0:00:07]} 7. Nf3 {[%emt 0:00:53]} O-O {[%emt 0:00:27]} 8. c3 {[%emt 0:00:22]} Nc6 {[%emt 0:00:30]} 9. Qc2 {[%emt 0:01:17]} d5 {[%emt 0:01:54]} 10. Nxf6+ {[%emt 0:00:22] White is better.} gxf6 {[%emt 0:00:13]} 11. O-O-O {[%emt 0:06:52]} Qe7 {[%emt 0:01:06]} 12. h4 {[%emt 0:04:21][%cal Bh2h4,Bh4h5][%mdl 32]} Kh8 {[%emt 0:09:04]} 13. h5 {[%emt 0:10:51]} e5 {[%emt 0:22:54]} 14. Nh4 {[%emt 0:08:21][%cal Oh4g6]} e4 {[%emt 0:02:04]} 15. g3 {[%emt 0:03:26]} f5 {[%emt 0:06:26]} 16. Ng2 {[%emt 0:01:21]} Nd8 {[%emt 0:00:24]} 17. Nf4 {[%emt 0:00:05]} (17. c4 $14) 17... c6 $11 {[%emt 0:00:21]} 18. Qd2 {[%emt 0:00:37]} Ne6 {[%emt 0:03:06]} 19. Be2 {[%emt 0:02:56]} Qg5 {[%emt 0:50:35]} 20. Rh4 {[%emt 0:00:25]} Nxf4 {[%emt 0:00:00]} 21. Rxf4 {[%emt 0:00:59]} Be6 {[%emt 0:00:00]} 22. Rh1 {[%emt 0:00:45]} h6 {[%emt 0:00:00]} 23. Rfh4 {[%emt 0:00:54]} Rf7 {[%emt 0:00:00]} 24. Qf4 {[%emt 0:00:10]} Kh7 {[%emt 0:00:00]} 25. Kc2 {[%emt 0:00:21]} Qxf4 {[%emt 0:00:00]} (25... Rg7 {feels hotter.} 26. Qd6 Qe7 27. Qe5 Re8) 26. Rxf4 {[%emt 0:00:07]} Kg7 {[%emt 0:00:00]} 27. Kd2 {[%emt 0:00:49]} a5 {[%emt 0:00:00]} 28. Ke3 {[%emt 0:00:41]} b5 {[%emt 0:00:00]} 29. Rg1 {[%emt 0:01:20]} Kf6 {[%emt 0:00:00]} 30. g4 {[%emt 0:01:37]} Rg8 {[%emt 0:00:00]} 31. Rg3 {[%emt 0:00:12]} Rg5 {[%emt 0:00:00]} 32. f3 {[%emt 0:22:00]} Rfg7 {[%emt 0:00:00] [#] White must now prevent ...Rxh5.} 33. fxe4 {[%emt 0:03:46]} (33. Rh3 {simplifies} exf3 34. Bxf3 Re7 35. Rh1) 33... dxe4 {[%emt 0:00:00] aiming for ...Rxh5.} 34. b3 $2 {[%emt 0:03:26] Loses the game.} ({White should play} 34. Rh3 $15) 34... Rxh5 $19 {[%emt 0:00:00]} 35. c4 {[%emt 0:00:55]} bxc4 {[%emt 0:00:00]} 36. bxc4 {[%emt 0:00:42]} Rh2 {[%emt 0:00:00] ...h5 is the strong threat.} 37. Rg1 {[%emt 0:01:52]} h5 {[%emt 0:00:00]} 38. gxf5 {[%emt 0:03:59]} (38. d5 cxd5 39. cxd5) 38... Rxg1 {[%emt 0:00:04]} 39. fxe6+ {[%emt 0:00:02]} Kxe6 {[%emt 0:00:58]} 40. Rxe4+ {[%emt 0:00:02][%mdl 4096] Endgame. KRR-KRB} Kd7 {[%emt 0:00:22]} 41. Re5 {[%emt 0:00:45]} h4 {[%emt 0:00:26] Strongly threatening ...Rg3+.} 42. Kf4 {[%emt 0:00:19]} Rf2+ {[%emt 0:02:23]} 43. Ke3 {[%emt 0:00:01]} Rf7 {[%emt 0:02:33]} 44. Rh5 {[%emt 0:02:07]} Rg3+ {[%emt 0:01:06]} 45. Kd2 {[%emt 0:00:02]} Rf4 {[%emt 0:01:30]} 46. Rh7+ {[%emt 0:04:01]} Kd8 {[%emt 0:00:11]} 47. Rh8+ {[%emt 0:00:11]} Ke7 {[%emt 0:00:10]} 48. Rh7+ {[%emt 0:00:34]} Kf6 {[%emt 0:00:24]} 49. d5 {[%emt 0:00:18]} cxd5 {[%emt 0:00:45]} 50. cxd5 {[%emt 0:00:02]} Ra4 {[%emt 0:00:39][%cal Oh4h3] Threatens to win with ...h3!} 51. Ke1 {[%emt 0:01:28]} Rxa2 {[%emt 0:00:58]} 52. Kf2 {[%emt 0:00:44] Repels Rg2+} Rd3 {[%emt 0:01:03]} 53. Rxh4 {[%emt 0:00:10]} Rdd2 {[%emt 0:00:21] Black mates.} 54. Re4 {[%emt 0:00:05]} a4 {[%emt 0:00:13]} 55. Kf3 {[%emt 0:00:07] [#]} Rxe2 $1 {[%emt 0:00:10][%mdl 512] Weighted Error Value: White=0.72/Black=0.25 (precise) .  Loses game:     	White=1     	---        Mistake:       	White=2     	---        Inaccurate:     	White=3     	Black=4      OK:         	White=10    	Black=15     Best:        	White=1     	Black=2} 0-1

[Event "Bijnor Open 2024"]
[Site "Bijnor"]
[Date "2024.03.19"]
[Round "6.3"]
[White "Ram Prakash, R."]
[Black "Balkishan, A.."]
[Result "1-0"]
[ECO "A37"]
[WhiteElo "2191"]
[BlackElo "2108"]
[Annotator "RC"]
[PlyCount "83"]
[EventDate "2024.03.17"]
[EventCountry "IND"]
[SourceTitle "playchess.com"]
[Source "ChessBase"]
[SourceQuality "1"]
[TimeControl "5400+30"]

1. Nf3 {[%emt 0:00:09]} c5 {[%emt 0:00:15]} 2. c4 {[%emt 0:02:06]} Nc6 {[%emt 0:00:03]} 3. g3 {[%emt 0:00:07]} e5 {[%emt 0:00:09]} 4. Nc3 {[%emt 0:00:57]} g6 {[%emt 0:00:05]} 5. Bg2 {[%emt 0:00:18]} Bg7 {[%emt 0:00:02]} 6. O-O {[%emt 0:00:23]} Nge7 {[%emt 0:00:03]} 7. d3 {[%emt 0:00:37]} O-O {[%emt 0:00:11]} 8. Bg5 {[%emt 0:04:15]} f6 {[%emt 0:01:16]} 9. Bd2 {[%emt 0:00:08]} d6 {[%emt 0:00:06]} 10. a3 {[%emt 0:00:41]} Be6 {[%emt 0:00:18]} 11. Rb1 {[%emt 0:00:29]} a5 {[%emt 0:02:25]} 12. Ne1 {[%emt 0:04:05]} d5 {[%emt 0:01:31]} 13. cxd5 {[%emt 0:00:56]} Nxd5 {[%emt 0:00:03]} 14. Nc2 {[%emt 0:02:21]} a4 {[%emt 0:05:19]} 15. Nxd5 {[%emt 0:07:06]} Bxd5 {[%emt 0:00:09]} 16. Bxd5+ {[%emt 0:00:22]} Qxd5 {[%emt 0:00:03]} 17. b3 {[%emt 0:00:35]} axb3 {[%emt 0:03:48]} 18. Ne3 {[%emt 0:03:35]} Qf7 {[%emt 0:00:41]} 19. Nc4 {[%emt 0:05:14]} f5 {[%emt 0:05:46]} 20. e3 {[%emt 0:04:13]} b2 {[%emt 0:09:17]} 21. Bc3 {[%emt 0:04:16]} f4 {[%emt 0:00:55]} 22. Rxb2 {[%emt 0:04:29]} f3 {[%emt 0:01:29]} 23. e4 {[%emt 0:11:12]} Qd7 {[%emt 0:02:33]} 24. Kh1 {[%emt 0:11:25]} b5 {[%emt 0:03:39]} 25. Rxb5 {[%emt 0:03:39]} Nd4 {[%emt 0:01:33]} 26. Rb2 {[%emt 0:01:24]} Qh3 {[%emt 0:01:20]} 27. Rg1 {[%emt 0:00:57]} g5 {[%emt 0:06:45]} 28. Bxd4 {[%emt 0:01:57]} cxd4 {[%emt 0:02:27]} 29. g4 {[%emt 0:00:55]} Rf4 {[%emt 0:01:32]} 30. Rg3 {[%emt 0:00:58]} Qh4 {[%emt 0:10:35]} 31. Rb7 {[%emt 0:03:02]} Ra6 {[%emt 0:07:58]} 32. Qb3 {[%emt 0:03:37]} Kh8 {[%emt 0:02:32]} 33. Rb8+ {[%emt 0:02:45]} Bf8 {[%emt 0:00:30]} 34. Nxe5 {[%emt 0:02:59]} Rh6 {[%emt 0:00:33]} 35. Rxf8+ {[%emt 0:02:55]} Rxf8 {[%emt 0:00:09]} 36. Nxf3 {[%emt 0:00:19]} Rxf3 {[%emt 0:00:25]} 37. Qb8+ {[%emt 0:00:10]} Kg7 {[%emt 0:00:25]} 38. Rxf3 {[%emt 0:00:07]} Rf6 {[%emt 0:03:06]} 39. Qe5 {[%emt 0:00:19]} Kg8 {[%emt 0:00:42]} 40. Qxf6 {[%emt 0:01:00]} h5 {[%emt 0:00:34]} 41. Qg6+ {[%emt 0:00:08]} Kh8 {[%emt 0:00:04]} 42. Rf8# {[%emt 0:00:10]} 1-0

[Event "Bijnor Open 2024"]
[Site "Bijnor"]
[Date "2024.03.19"]
[Round "6.4"]
[White "Dutta, Joydeep"]
[Black "Shreyash Singh"]
[Result "1-0"]
[ECO "E09"]
[WhiteElo "2041"]
[BlackElo "1807"]
[Annotator "RC"]
[PlyCount "63"]
[EventDate "2024.03.17"]
[EventCountry "IND"]
[SourceTitle "playchess.com"]
[Source "ChessBase"]
[SourceQuality "1"]
[TimeControl "5400+30"]

1. d4 {[%emt 0:08:58]} Nf6 {[%emt 0:00:08]} 2. c4 {[%emt 0:00:10]} e6 {[%emt 0:00:06]} 3. g3 {[%emt 0:00:08]} d5 {[%emt 0:00:05]} 4. Nf3 {[%emt 0:00:06]} Be7 {[%emt 0:00:04]} 5. Bg2 {[%emt 0:00:25]} O-O {[%emt 0:00:14]} 6. O-O {[%emt 0:00:17]} c6 {[%emt 0:00:06]} 7. Nbd2 {[%emt 0:01:55]} b6 {[%emt 0:00:23]} 8. b3 {[%emt 0:07:45]} Nbd7 {[%emt 0:00:54]} 9. Bb2 {[%emt 0:00:44]} Ba6 {[%emt 0:00:18]} 10. Qc2 {[%emt 0:01:35]} Rc8 {[%emt 0:07:03]} 11. Rac1 {[%emt 0:04:43]} c5 {[%emt 0:03:40]} 12. Qb1 {[%emt 0:02:02]} Re8 {[%emt 0:09:16]} 13. Rfd1 {[%emt 0:01:50]} Bd6 {[%emt 0:08:03]} 14. e4 {[%emt 0:03:10]} dxe4 {[%emt 0:09:35]} 15. Nxe4 {[%emt 0:00:34]} Nxe4 {[%emt 0:01:53]} 16. Qxe4 {[%emt 0:00:04]} Nf6 {[%emt 0:02:24]} 17. Qh4 {[%emt 0:02:00]} Qe7 {[%emt 0:05:28]} 18. d5 {[%emt 0:08:10]} e5 {[%emt 0:04:33]} 19. Bh3 {[%emt 0:02:42]} Rb8 {[%emt 0:00:25]} 20. Re1 {[%emt 0:00:15]} Qc7 {[%emt 0:01:00]} 21. a4 {[%emt 0:11:42]} Bb7 {[%emt 0:03:06]} 22. Re3 {[%emt 0:02:10]} Re7 {[%emt 0:01:47]} 23. Rce1 {[%emt 0:00:21]} Rbe8 {[%emt 0:00:07]} 24. Bf5 {[%emt 0:03:32]} h6 {[%emt 0:14:44]} 25. R3e2 {[%emt 0:18:12]} a6 {[%emt 0:01:53]} 26. Bc1 {[%emt 0:02:16]} Nd7 {[%emt 0:03:04]} 27. Re4 {[%emt 0:01:55]} Nf8 {[%emt 0:05:48]} 28. Rg4 {[%emt 0:05:26]} Bc8 {[%emt 0:00:28]} 29. Rxg7+ {[%emt 0:00:40]} Kxg7 {[%emt 0:00:20]} 30. Bxh6+ {[%emt 0:00:03]} Kg8 {[%emt 0:00:38]} 31. Qf6 {[%emt 0:00:02]} Ne6 {[%emt 0:00:08]} 32. Ng5 {[%emt 0:00:06]} 1-0